[Event "Titled Tuesday Blitz July 25 Late 2023"]
[White "Tarhan, Adar"]
[Black "Senft, Sean"]
[WhiteFideId "34544712"]
[BlackFideId "2044960"]
[WhiteElo "2567"]
[BlackElo "2326"]
[Result "1-0"]
[Round "5"]
[TimeControl "180+2"]
[Date "2023.07.25"]
[WhiteClock "0:01:16"]
[BlackClock "0:01:06"]
[Board "65"]

1. d4 {[%clk 0:02:59]}  d5 {[%clk 0:02:59]} 2. c3 {[%clk 0:03:00]}  Nf6 {[%clk 0:02:59]} 3. Bf4 {[%clk 0:02:58]}  e6 {[%clk 0:02:59]} 4. Nd2 {[%clk 0:02:58]}  Bd6 {[%clk 0:03:00]} 5. e3 {[%clk 0:02:59]}  b6 {[%clk 0:02:59]} 6. Ngf3 {[%clk 0:02:58]}  Bb7 {[%clk 0:02:59]} 7. Bd3 {[%clk 0:02:57]}  O-O {[%clk 0:02:59]} 8. Bg3 {[%clk 0:02:56]}  c5 {[%clk 0:02:59]} 9. O-O {[%clk 0:02:54]}  Ne4 {[%clk 0:02:54]} 10. Bxe4 {[%clk 0:02:42]}  dxe4 {[%clk 0:02:54]} 11. Bxd6 {[%clk 0:02:42]}  Qxd6 {[%clk 0:02:36]} 12. Ng5 {[%clk 0:02:38]}  f5 {[%clk 0:02:31]} 13. dxc5 {[%clk 0:02:38]}  bxc5 {[%clk 0:02:28]} 14. Qb3 {[%clk 0:01:55]}  Bd5 {[%clk 0:02:15]} 15. c4 {[%clk 0:01:55]}  Bc6 {[%clk 0:01:51]} 16. Rad1 {[%clk 0:01:47]}  Qe7 {[%clk 0:01:51]} 17. Nh3 {[%clk 0:01:47]}  e5 {[%clk 0:01:48]} 18. Qa3 {[%clk 0:01:44]}  Nd7 {[%clk 0:01:44]} 19. Nb3 {[%clk 0:01:43]}  Rfc8 {[%clk 0:01:33]} 20. Na5 {[%clk 0:01:42]}  Nb6 {[%clk 0:01:29]} 21. Rd2 {[%clk 0:01:31]}  Be8 {[%clk 0:01:26]} 22. Rfd1 {[%clk 0:01:30]}  Bf7 {[%clk 0:01:24]} 23. Qc3 {[%clk 0:01:19]}  Rd8 {[%clk 0:01:06]} 24. Nc6 {[%clk 0:01:16]} 1-0


[Site "https://www.chess.com"]

[Event "Titled Tuesday Blitz July 25 Late 2023"]
[White "Caruana, Fabiano"]
[Black "Hamedi Nia, Vesal"]
[WhiteFideId "2020009"]
[BlackFideId "12542253"]
[WhiteElo "3110"]
[BlackElo "2466"]
[Result "1-0"]
[Round "5"]
[TimeControl "180+2"]
[Date "2023.07.25"]
[WhiteClock "0:01:58"]
[BlackClock "0:00:12"]
[Board "66"]

1. h4 {[%clk 0:03:00]}  d5 {[%clk 0:02:58]} 2. h5 {[%clk 0:03:01]}  h6 {[%clk 0:02:59]} 3. d3 {[%clk 0:03:01]}  Nf6 {[%clk 0:02:59]} 4. Bf4 {[%clk 0:03:00]}  Nc6 {[%clk 0:02:59]} 5. Nf3 {[%clk 0:03:00]}  Bg4 {[%clk 0:02:59]} 6. Ne5 {[%clk 0:02:59]}  Nxe5 {[%clk 0:02:59]} 7. Bxe5 {[%clk 0:03:00]}  e6 {[%clk 0:02:59]} 8. f3 {[%clk 0:02:58]}  Bf5 {[%clk 0:02:59]} 9. e4 {[%clk 0:02:57]}  Bh7 {[%clk 0:02:57]} 10. Nd2 {[%clk 0:02:56]}  Bd6 {[%clk 0:02:56]} 11. Bxd6 {[%clk 0:02:55]}  Qxd6 {[%clk 0:02:57]} 12. Qe2 {[%clk 0:02:55]}  Qb6 {[%clk 0:02:55]} 13. O-O-O {[%clk 0:02:55]}  O-O-O {[%clk 0:02:54]} 14. Kb1 {[%clk 0:02:53]}  Kb8 {[%clk 0:02:53]} 15. Nb3 {[%clk 0:02:53]}  dxe4 {[%clk 0:02:50]} 16. fxe4 {[%clk 0:02:53]}  Nd7 {[%clk 0:02:47]} 17. Qe1 {[%clk 0:02:49]}  f5 {[%clk 0:02:45]} 18. exf5 {[%clk 0:02:47]}  exf5 {[%clk 0:02:45]} 19. Be2 {[%clk 0:02:47]}  Rhe8 {[%clk 0:02:43]} 20. Qf1 {[%clk 0:02:44]}  Ne5 {[%clk 0:02:41]} 21. Bf3 {[%clk 0:02:44]}  Nxf3 {[%clk 0:02:40]} 22. Qxf3 {[%clk 0:02:45]}  Re6 {[%clk 0:02:33]} 23. Nd2 {[%clk 0:02:43]}  Rde8 {[%clk 0:02:31]} 24. Nc4 {[%clk 0:02:43]}  Qc5 {[%clk 0:02:30]} 25. a3 {[%clk 0:02:43]}  Rd8 {[%clk 0:02:26]} 26. Qg3 {[%clk 0:02:41]}  Qd4 {[%clk 0:02:09]} 27. Rhe1 {[%clk 0:02:41]}  f4 {[%clk 0:02:03]} 28. Qh4 {[%clk 0:02:35]}  Rxe1 {[%clk 0:01:55]} 29. Rxe1 {[%clk 0:02:36]}  Rc8 {[%clk 0:01:32]} 30. Ne5 {[%clk 0:02:31]}  Bf5 {[%clk 0:01:26]} 31. Nf3 {[%clk 0:02:30]}  Qd6 {[%clk 0:01:24]} 32. Re5 {[%clk 0:02:29]}  Bxd3 {[%clk 0:01:16]} 33. cxd3 {[%clk 0:02:23]}  Qxd3+ {[%clk 0:01:17]} 34. Ka1 {[%clk 0:02:23]}  Qd1+ {[%clk 0:01:10]} 35. Ka2 {[%clk 0:02:23]}  Qc1 {[%clk 0:01:07]} 36. Qf2 {[%clk 0:02:21]}  Qc4+ {[%clk 0:01:06]} 37. b3 {[%clk 0:02:21]}  Qd3 {[%clk 0:01:03]} 38. Qe2 {[%clk 0:02:20]}  Qd6 {[%clk 0:01:01]} 39. Re8 {[%clk 0:02:19]}  b6 {[%clk 0:00:56]} 40. Rxc8+ {[%clk 0:02:14]}  Kxc8 {[%clk 0:00:57]} 41. Qe4 {[%clk 0:02:14]}  a5 {[%clk 0:00:47]} 42. b4 {[%clk 0:02:12]}  a4 {[%clk 0:00:40]} 43. Qa8+ {[%clk 0:02:10]}  Kd7 {[%clk 0:00:39]} 44. Qxa4+ {[%clk 0:02:11]}  Ke7 {[%clk 0:00:38]} 45. Qc2 {[%clk 0:02:12]}  Qe6+ {[%clk 0:00:35]} 46. Kb2 {[%clk 0:02:11]}  Qf6+ {[%clk 0:00:33]} 47. Qc3 {[%clk 0:02:08]}  Qe6 {[%clk 0:00:20]} 48. Qxg7+ {[%clk 0:02:06]}  Kd8 {[%clk 0:00:20]} 49. Qe5 {[%clk 0:02:05]}  Qc6 {[%clk 0:00:17]} 50. Qxf4 {[%clk 0:02:04]}  Kc8 {[%clk 0:00:16]} 51. g4 {[%clk 0:01:59]}  Qd5 {[%clk 0:00:15]} 52. Qf5+ {[%clk 0:01:57]}  Qxf5 {[%clk 0:00:12]} 53. gxf5 {[%clk 0:01:58]} 1-0


[Site "https://www.chess.com"]

[Event "Titled Tuesday Blitz July 25 Late 2023"]
[White "Grigoriants, Sergey"]
[Black "Bobkov, Vadim"]
[WhiteFideId "4130804"]
[BlackFideId "34110876"]
[WhiteElo "2867"]
[BlackElo "2461"]
[Result "1-0"]
[Round "5"]
[TimeControl "180+2"]
[Date "2023.07.25"]
[WhiteClock "0:01:26"]
[BlackClock "0:00:22"]
[Board "67"]

1. d4 {[%clk 0:02:39]}  c5 {[%clk 0:02:57]} 2. d5 {[%clk 0:02:39]}  e6 {[%clk 0:02:57]} 3. Nc3 {[%clk 0:02:39]}  a6 {[%clk 0:02:49]} 4. a4 {[%clk 0:02:38]}  g6 {[%clk 0:02:43]} 5. e4 {[%clk 0:02:37]}  Bg7 {[%clk 0:02:39]} 6. Nf3 {[%clk 0:02:37]}  exd5 {[%clk 0:02:30]} 7. Nxd5 {[%clk 0:02:36]}  Nc6 {[%clk 0:02:25]} 8. c3 {[%clk 0:02:35]}  Nf6 {[%clk 0:02:10]} 9. Bc4 {[%clk 0:02:18]}  O-O {[%clk 0:02:00]} 10. Bg5 {[%clk 0:02:11]}  d6 {[%clk 0:01:57]} 11. O-O {[%clk 0:02:08]}  Bg4 {[%clk 0:01:47]} 12. h3 {[%clk 0:01:51]}  Bxf3 {[%clk 0:01:26]} 13. Qxf3 {[%clk 0:01:51]}  Ne5 {[%clk 0:01:25]} 14. Qe2 {[%clk 0:01:45]}  h6 {[%clk 0:01:17]} 15. Nxf6+ {[%clk 0:01:44]}  Bxf6 {[%clk 0:01:13]} 16. Bxh6 {[%clk 0:01:44]}  Re8 {[%clk 0:01:03]} 17. Bd5 {[%clk 0:01:44]}  Rb8 {[%clk 0:00:58]} 18. f4 {[%clk 0:01:33]}  Nc6 {[%clk 0:00:44]} 19. Qg4 {[%clk 0:01:28]}  Kh7 {[%clk 0:00:22]} 20. Bxf7 {[%clk 0:01:26]} 1-0


[Site "https://www.chess.com"]

[Event "Titled Tuesday Blitz July 25 Late 2023"]
[White "Bolourchifard, Farzad"]
[Black "Castella Garcia, Fausto"]
[WhiteFideId "12510084"]
[BlackFideId "3501922"]
[WhiteElo "2750"]
[BlackElo "2454"]
[Result "1-0"]
[Round "5"]
[TimeControl "180+2"]
[Date "2023.07.25"]
[WhiteClock "0:00:19"]
[BlackClock "0:00:04"]
[Board "71"]

1. d4 {[%clk 0:03:00]}  Nf6 {[%clk 0:02:56]} 2. Nf3 {[%clk 0:03:00]}  g6 {[%clk 0:02:56]} 3. Bg5 {[%clk 0:03:00]}  Bg7 {[%clk 0:02:56]} 4. e3 {[%clk 0:03:00]}  O-O {[%clk 0:02:55]} 5. Be2 {[%clk 0:03:00]}  Ne4 {[%clk 0:02:51]} 6. Bh4 {[%clk 0:02:59]}  d5 {[%clk 0:02:52]} 7. O-O {[%clk 0:02:59]}  c5 {[%clk 0:02:49]} 8. c3 {[%clk 0:02:59]}  Nc6 {[%clk 0:02:50]} 9. Nbd2 {[%clk 0:02:59]}  Bf5 {[%clk 0:02:50]} 10. Nxe4 {[%clk 0:02:57]}  dxe4 {[%clk 0:02:46]} 11. Nd2 {[%clk 0:02:56]}  cxd4 {[%clk 0:02:45]} 12. cxd4 {[%clk 0:02:57]}  h5 {[%clk 0:02:25]} 13. Rc1 {[%clk 0:02:54]}  Rc8 {[%clk 0:02:19]} 14. Qb3 {[%clk 0:02:53]}  Qd7 {[%clk 0:02:12]} 15. Bb5 {[%clk 0:02:36]}  a6 {[%clk 0:02:00]} 16. Bxc6 {[%clk 0:02:29]}  Rxc6 {[%clk 0:02:01]} 17. Rxc6 {[%clk 0:02:28]}  Qxc6 {[%clk 0:02:02]} 18. Bxe7 {[%clk 0:02:28]}  Rc8 {[%clk 0:02:02]} 19. Nb1 {[%clk 0:01:40]}  Be6 {[%clk 0:01:47]} 20. Qa3 {[%clk 0:01:40]}  Qd7 {[%clk 0:01:25]} 21. Nc3 {[%clk 0:01:35]}  f5 {[%clk 0:01:21]} 22. Qd6 {[%clk 0:01:31]}  Qxd6 {[%clk 0:01:20]} 23. Bxd6 {[%clk 0:01:32]}  b5 {[%clk 0:01:09]} 24. a3 {[%clk 0:01:26]}  Bb3 {[%clk 0:01:06]} 25. Rc1 {[%clk 0:01:14]}  Kf7 {[%clk 0:00:58]} 26. h4 {[%clk 0:01:08]}  Ke6 {[%clk 0:00:57]} 27. Bc5 {[%clk 0:01:06]}  Bf6 {[%clk 0:00:50]} 28. g3 {[%clk 0:01:07]}  g5 {[%clk 0:00:50]} 29. hxg5 {[%clk 0:01:03]}  Bxg5 {[%clk 0:00:50]} 30. Kg2 {[%clk 0:00:58]}  Rg8 {[%clk 0:00:46]} 31. Rg1 {[%clk 0:00:34]}  h4 {[%clk 0:00:44]} 32. Kh3 {[%clk 0:00:20]}  hxg3 {[%clk 0:00:30]} 33. Rxg3 {[%clk 0:00:20]}  Kf6 {[%clk 0:00:28]} 34. Kg2 {[%clk 0:00:20]}  Bc4 {[%clk 0:00:22]} 35. Bd6 {[%clk 0:00:21]}  Kf7 {[%clk 0:00:18]} 36. Bf4 {[%clk 0:00:18]}  Bxf4 {[%clk 0:00:17]} 37. Rxg8 {[%clk 0:00:19]}  Kxg8 {[%clk 0:00:16]} 38. exf4 {[%clk 0:00:20]}  Kf7 {[%clk 0:00:16]} 39. Nd1 {[%clk 0:00:21]}  Ke6 {[%clk 0:00:15]} 40. Ne3 {[%clk 0:00:22]}  Be2 {[%clk 0:00:15]} 41. Kg3 {[%clk 0:00:22]}  Bf3 {[%clk 0:00:13]} 42. Kh4 {[%clk 0:00:22]}  Kf6 {[%clk 0:00:14]} 43. Kg3 {[%clk 0:00:21]}  Ke6 {[%clk 0:00:13]} 44. b4 {[%clk 0:00:22]}  Kf6 {[%clk 0:00:13]} 45. Kh4 {[%clk 0:00:21]}  Ke6 {[%clk 0:00:13]} 46. Kg5 {[%clk 0:00:21]}  Be2 {[%clk 0:00:10]} 47. Kg6 {[%clk 0:00:21]}  Bd3 {[%clk 0:00:08]} 48. d5+ {[%clk 0:00:20]}  Kd6 {[%clk 0:00:04]} 49. Kxf5 {[%clk 0:00:19]} 1-0


[Site "https://www.chess.com"]

[Event "Titled Tuesday Blitz July 25 Late 2023"]
[White "Krishna C R G"]
[Black "Toncheva, Nadya"]
[WhiteFideId "5018625"]
[BlackFideId "2924056"]
[WhiteElo "2749"]
[BlackElo "2453"]
[Result "1-0"]
[Round "5"]
[TimeControl "180+2"]
[Date "2023.07.25"]
[WhiteClock "0:00:41"]
[BlackClock "0:00:14"]
[Board "72"]

1. Nf3 {[%clk 0:03:00]}  c5 {[%clk 0:02:59]} 2. g3 {[%clk 0:02:56]}  Nc6 {[%clk 0:03:00]} 3. Bg2 {[%clk 0:02:56]}  g6 {[%clk 0:03:00]} 4. d4 {[%clk 0:02:47]}  cxd4 {[%clk 0:02:59]} 5. Nxd4 {[%clk 0:02:48]}  Bg7 {[%clk 0:03:00]} 6. Nb3 {[%clk 0:02:46]}  d6 {[%clk 0:02:58]} 7. O-O {[%clk 0:02:46]}  Be6 {[%clk 0:02:59]} 8. Nc3 {[%clk 0:02:42]}  Qd7 {[%clk 0:02:59]} 9. Re1 {[%clk 0:02:40]}  Nf6 {[%clk 0:02:58]} 10. e4 {[%clk 0:02:39]}  h5 {[%clk 0:02:56]} 11. Nd5 {[%clk 0:02:38]}  h4 {[%clk 0:02:52]} 12. Nf4 {[%clk 0:02:37]}  hxg3 {[%clk 0:02:48]} 13. hxg3 {[%clk 0:02:38]}  Bg4 {[%clk 0:02:44]} 14. f3 {[%clk 0:02:39]}  Be6 {[%clk 0:02:37]} 15. Be3 {[%clk 0:02:39]}  Nh5 {[%clk 0:02:32]} 16. Nxe6 {[%clk 0:02:19]}  Qxe6 {[%clk 0:02:32]} 17. Bf2 {[%clk 0:02:20]}  Bxb2 {[%clk 0:02:26]} 18. Rb1 {[%clk 0:02:17]}  Be5 {[%clk 0:02:22]} 19. f4 {[%clk 0:02:15]}  Bg7 {[%clk 0:02:16]} 20. e5 {[%clk 0:02:15]}  O-O {[%clk 0:02:07]} 21. Bd5 {[%clk 0:02:06]}  Qh3 {[%clk 0:02:00]} 22. e6 {[%clk 0:02:01]}  Nf6 {[%clk 0:00:54]} 23. exf7+ {[%clk 0:01:59]}  Kh7 {[%clk 0:00:52]} 24. Bg2 {[%clk 0:01:58]}  Qg4 {[%clk 0:00:49]} 25. Qxg4 {[%clk 0:01:41]}  Nxg4 {[%clk 0:00:50]} 26. Bxc6 {[%clk 0:01:41]}  bxc6 {[%clk 0:00:50]} 27. Rxe7 {[%clk 0:01:42]}  Nxf2 {[%clk 0:00:43]} 28. Kxf2 {[%clk 0:01:41]}  Bf6 {[%clk 0:00:43]} 29. Re6 {[%clk 0:01:35]}  Kg7 {[%clk 0:00:42]} 30. Rxd6 {[%clk 0:01:35]}  Rac8 {[%clk 0:00:38]} 31. Na5 {[%clk 0:01:15]}  Rxf7 {[%clk 0:00:38]} 32. Nc4 {[%clk 0:00:48]}  Re7 {[%clk 0:00:33]} 33. Re1 {[%clk 0:00:43]}  Rxe1 {[%clk 0:00:21]} 34. Kxe1 {[%clk 0:00:44]}  Kf7 {[%clk 0:00:18]} 35. Rd7+ {[%clk 0:00:44]}  Ke6 {[%clk 0:00:17]} 36. Rxa7 {[%clk 0:00:43]}  Kd5 {[%clk 0:00:14]} 37. Nb6+ {[%clk 0:00:41]} 1-0


[Site "https://www.chess.com"]

[Event "Titled Tuesday Blitz July 25 Late 2023"]
[White "Balla, Tamas-Kristof"]
[Black "Schnaider, Ilan"]
[WhiteFideId "1208497"]
[BlackFideId "169013"]
[WhiteElo "2449"]
[BlackElo "2737"]
[Result "0-1"]
[Round "5"]
[TimeControl "180+2"]
[Date "2023.07.25"]
[WhiteClock "0:00:05"]
[BlackClock "0:00:05"]
[Board "73"]

1. e4 {[%clk 0:03:00]}  c5 {[%clk 0:02:58]} 2. c3 {[%clk 0:03:00]}  Nf6 {[%clk 0:02:56]} 3. e5 {[%clk 0:03:00]}  Nd5 {[%clk 0:02:57]} 4. d4 {[%clk 0:03:01]}  cxd4 {[%clk 0:02:58]} 5. Nf3 {[%clk 0:03:01]}  e6 {[%clk 0:02:57]} 6. cxd4 {[%clk 0:03:02]}  Nc6 {[%clk 0:02:58]} 7. a3 {[%clk 0:03:00]}  d6 {[%clk 0:02:58]} 8. Bd3 {[%clk 0:03:00]}  dxe5 {[%clk 0:02:58]} 9. dxe5 {[%clk 0:03:01]}  Bc5 {[%clk 0:02:58]} 10. O-O {[%clk 0:02:58]}  h6 {[%clk 0:02:58]} 11. Qe2 {[%clk 0:02:48]}  Bb6 {[%clk 0:02:52]} 12. Rd1 {[%clk 0:02:46]}  Qc7 {[%clk 0:02:47]} 13. Be4 {[%clk 0:02:33]}  Nce7 {[%clk 0:02:28]} 14. Bd2 {[%clk 0:02:29]}  g5 {[%clk 0:02:24]} 15. Nc3 {[%clk 0:02:20]}  Bd7 {[%clk 0:02:06]} 16. Rac1 {[%clk 0:02:18]}  Qd8 {[%clk 0:01:31]} 17. Nxd5 {[%clk 0:02:06]}  exd5 {[%clk 0:01:28]} 18. Bb1 {[%clk 0:01:59]}  g4 {[%clk 0:01:27]} 19. Ne1 {[%clk 0:01:55]}  Nc6 {[%clk 0:01:26]} 20. Nd3 {[%clk 0:01:50]}  Nd4 {[%clk 0:01:24]} 21. Qe1 {[%clk 0:01:44]}  Rg8 {[%clk 0:00:46]} 22. Be3 {[%clk 0:01:34]}  Nf3+ {[%clk 0:00:21]} 23. gxf3 {[%clk 0:01:34]}  gxf3+ {[%clk 0:00:22]} 24. Kh1 {[%clk 0:01:34]}  Qh4 {[%clk 0:00:23]} 25. Qb4 {[%clk 0:00:48]}  Rg4 {[%clk 0:00:17]} 26. Nf4 {[%clk 0:00:23]}  Bxe3 {[%clk 0:00:17]} 27. fxe3 {[%clk 0:00:21]}  Bc6 {[%clk 0:00:12]} 28. Bf5 {[%clk 0:00:17]}  Rg5 {[%clk 0:00:10]} 29. Bh3 {[%clk 0:00:17]}  f2 {[%clk 0:00:08]} 30. Rxc6 {[%clk 0:00:16]}  bxc6 {[%clk 0:00:07]} 31. Qd6 {[%clk 0:00:17]}  Rd8 {[%clk 0:00:03]} 32. Qxc6+ {[%clk 0:00:17]}  Kf8 {[%clk 0:00:04]} 33. e6 {[%clk 0:00:12]}  Re5 {[%clk 0:00:02]} 34. exf7 {[%clk 0:00:08]}  Rxe3 {[%clk 0:00:02]} 35. Ne6+ {[%clk 0:00:06]}  Kxf7 {[%clk 0:00:01]} 36. Nxd8+ {[%clk 0:00:06]}  Qxd8 {[%clk 0:00:02]} 37. Qb7+ {[%clk 0:00:03]}  Kg8 {[%clk 0:00:01]} 38. Qxd5+ {[%clk 0:00:03]}  Qxd5+ {[%clk 0:00:01]} 39. Rxd5 {[%clk 0:00:03]}  Re1+ {[%clk 0:00:02]} 40. Bf1 {[%clk 0:00:02]}  Rxf1+ {[%clk 0:00:03]} 41. Kg2 {[%clk 0:00:03]}  Rb1 {[%clk 0:00:03]} 42. Kxf2 {[%clk 0:00:04]}  Rxb2+ {[%clk 0:00:03]} 43. Kg3 {[%clk 0:00:04]}  Rb3+ {[%clk 0:00:04]} 44. Kh4 {[%clk 0:00:04]}  Rxa3 {[%clk 0:00:05]} 45. Rd6 {[%clk 0:00:04]}  Kg7 {[%clk 0:00:05]} 46. Kh5 {[%clk 0:00:05]}  Rh3+ {[%clk 0:00:04]} 47. Kg4 {[%clk 0:00:05]}  Ra3 {[%clk 0:00:05]} 48. Rd7+ {[%clk 0:00:05]}  Kf6 {[%clk 0:00:05]} 49. h4 {[%clk 0:00:05]}  Ra6 {[%clk 0:00:04]} 50. Kh5 {[%clk 0:00:04]}  Ke6 {[%clk 0:00:04]} 51. Rd8 {[%clk 0:00:04]}  Ke7 {[%clk 0:00:05]} 52. Ra8 {[%clk 0:00:04]}  Kf7 {[%clk 0:00:03]} 53. Rh8 {[%clk 0:00:04]}  Kg7 {[%clk 0:00:03]} 54. Rb8 {[%clk 0:00:05]}  Rb6 {[%clk 0:00:02]} 55. Ra8 {[%clk 0:00:05]}  Rb5+ {[%clk 0:00:01]} 56. Kg4 {[%clk 0:00:05]}  a5 {[%clk 0:00:02]} 57. Ra7+ {[%clk 0:00:05]}  Kf6 {[%clk 0:00:02]} 58. Ra6+ {[%clk 0:00:05]}  Kg7 {[%clk 0:00:03]} 59. Ra7+ {[%clk 0:00:06]}  Kf8 {[%clk 0:00:03]} 60. Ra6 {[%clk 0:00:06]}  h5+ {[%clk 0:00:03]} 61. Kf4 {[%clk 0:00:06]}  Ke7 {[%clk 0:00:03]} 62. Ra7+ {[%clk 0:00:06]}  Kd6 {[%clk 0:00:03]} 63. Ra8 {[%clk 0:00:07]}  Kc5 {[%clk 0:00:03]} 64. Rc8+ {[%clk 0:00:07]}  Kb4 {[%clk 0:00:04]} 65. Ra8 {[%clk 0:00:07]}  a4 {[%clk 0:00:04]} 66. Ke4 {[%clk 0:00:08]}  a3 {[%clk 0:00:04]} 67. Kd3 {[%clk 0:00:09]}  Kb3 {[%clk 0:00:05]} 68. Kd2 {[%clk 0:00:05]}  Kb2 {[%clk 0:00:05]} 0-1


[Site "https://www.chess.com"]

[Event "Titled Tuesday Blitz July 25 Late 2023"]
[White "Szyszylo, Rafal"]
[Black "Korchmar, Vasiliy"]
[WhiteFideId "1109626"]
[BlackFideId "24131750"]
[WhiteElo "2446"]
[BlackElo "2689"]
[Result "0-1"]
[Round "5"]
[TimeControl "180+2"]
[Date "2023.07.25"]
[WhiteClock "0:00:00"]
[BlackClock "0:01:06"]
[Board "75"]

1. e4 {[%clk 0:03:00]}  c5 {[%clk 0:02:25]} 2. Nc3 {[%clk 0:02:58]}  d6 {[%clk 0:02:25]} 3. f4 {[%clk 0:02:56]}  Nc6 {[%clk 0:02:25]} 4. Nf3 {[%clk 0:02:55]}  g6 {[%clk 0:02:23]} 5. Bb5 {[%clk 0:02:55]}  Bd7 {[%clk 0:02:23]} 6. d3 {[%clk 0:02:50]}  Bg7 {[%clk 0:02:22]} 7. O-O {[%clk 0:02:48]}  Nd4 {[%clk 0:02:22]} 8. Bxd7+ {[%clk 0:02:46]}  Qxd7 {[%clk 0:02:21]} 9. Kh1 {[%clk 0:01:57]}  e6 {[%clk 0:02:20]} 10. f5 {[%clk 0:01:48]}  gxf5 {[%clk 0:02:17]} 11. Bg5 {[%clk 0:01:31]}  Ne7 {[%clk 0:02:00]} 12. Nxd4 {[%clk 0:01:22]}  cxd4 {[%clk 0:01:59]} 13. exf5 {[%clk 0:00:55]}  Nxf5 {[%clk 0:01:55]} 14. Ne4 {[%clk 0:00:48]}  h6 {[%clk 0:01:22]} 15. Nf6+ {[%clk 0:00:40]}  Bxf6 {[%clk 0:01:22]} 16. Bxf6 {[%clk 0:00:41]}  Rg8 {[%clk 0:01:23]} 17. Rxf5 {[%clk 0:00:22]}  exf5 {[%clk 0:01:22]} 18. Qe1+ {[%clk 0:00:19]}  Qe6 {[%clk 0:01:22]} 19. Qh4 {[%clk 0:00:18]}  Rg4 {[%clk 0:01:07]} 20. Qxh6 {[%clk 0:00:11]}  Kd7 {[%clk 0:01:08]} 21. Bg5 {[%clk 0:00:00]}  Qe2 {[%clk 0:01:06]} 0-1


[Site "https://www.chess.com"]

[Event "Titled Tuesday Blitz July 25 Late 2023"]
[White "Serban, Cristian-Stefan"]
[Black "ArtemDyachuk"]
[WhiteFideId "1241443"]
[WhiteElo "2438"]
[BlackElo "2601"]
[Result "1-0"]
[Round "5"]
[TimeControl "180+2"]
[Date "2023.07.25"]
[WhiteClock "0:00:57"]
[BlackClock "0:00:00"]
[Board "81"]

1. d4 {[%clk 0:02:56]}  Nf6 {[%clk 0:02:56]} 2. Bf4 {[%clk 0:02:56]}  e6 {[%clk 0:02:54]} 3. e3 {[%clk 0:02:55]}  b6 {[%clk 0:02:53]} 4. Qf3 {[%clk 0:02:52]}  d5 {[%clk 0:02:45]} 5. Nc3 {[%clk 0:02:51]}  a6 {[%clk 0:02:36]} 6. O-O-O {[%clk 0:02:49]}  Bb7 {[%clk 0:02:35]} 7. g4 {[%clk 0:02:49]}  c5 {[%clk 0:02:19]} 8. g5 {[%clk 0:02:48]}  Nfd7 {[%clk 0:02:19]} 9. h4 {[%clk 0:02:47]}  Nc6 {[%clk 0:02:18]} 10. h5 {[%clk 0:02:41]}  cxd4 {[%clk 0:01:51]} 11. exd4 {[%clk 0:02:42]}  Be7 {[%clk 0:01:36]} 12. g6 {[%clk 0:02:40]}  Bf6 {[%clk 0:01:36]} 13. Nge2 {[%clk 0:02:35]}  hxg6 {[%clk 0:01:31]} 14. hxg6 {[%clk 0:02:34]}  Rxh1 {[%clk 0:01:32]} 15. gxf7+ {[%clk 0:02:34]}  Kxf7 {[%clk 0:01:32]} 16. Qxh1 {[%clk 0:02:34]}  b5 {[%clk 0:01:28]} 17. Qh5+ {[%clk 0:02:33]}  Kg8 {[%clk 0:01:23]} 18. Bh3 {[%clk 0:02:32]}  Qe8 {[%clk 0:01:21]} 19. Qxe8+ {[%clk 0:02:26]}  Rxe8 {[%clk 0:01:20]} 20. a3 {[%clk 0:02:04]}  Bc8 {[%clk 0:01:16]} 21. Be3 {[%clk 0:01:55]}  Nb6 {[%clk 0:01:15]} 22. b3 {[%clk 0:01:53]}  Bd7 {[%clk 0:01:13]} 23. Rg1 {[%clk 0:01:52]}  Kf7 {[%clk 0:01:01]} 24. Kd2 {[%clk 0:01:50]}  Rh8 {[%clk 0:00:47]} 25. Bg4 {[%clk 0:01:50]}  Nd8 {[%clk 0:00:33]} 26. Kd3 {[%clk 0:01:49]}  Nb7 {[%clk 0:00:31]} 27. Nf4 {[%clk 0:01:48]}  a5 {[%clk 0:00:30]} 28. Bh5+ {[%clk 0:01:42]}  Kg8 {[%clk 0:00:26]} 29. Nce2 {[%clk 0:01:32]}  Nd6 {[%clk 0:00:13]} 30. Ng3 {[%clk 0:01:32]}  Nf7 {[%clk 0:00:08]} 31. Bg4 {[%clk 0:01:20]}  Nd8 {[%clk 0:00:03]} 32. Bd2 {[%clk 0:01:19]}  b4 {[%clk 0:00:01]} 33. axb4 {[%clk 0:01:19]}  Bb5+ {[%clk 0:00:02]} 34. Ke3 {[%clk 0:01:17]}  axb4 {[%clk 0:00:03]} 35. Nxe6 {[%clk 0:01:11]}  Kf7 {[%clk 0:00:03]} 36. Nxd8+ {[%clk 0:01:11]}  Rxd8 {[%clk 0:00:04]} 37. Bxb4 {[%clk 0:01:11]}  Re8+ {[%clk 0:00:04]} 38. Kd2 {[%clk 0:01:05]}  Bxd4 {[%clk 0:00:04]} 39. Bh5+ {[%clk 0:01:02]}  g6 {[%clk 0:00:03]} 40. Bxg6+ {[%clk 0:01:03]}  Kxg6 {[%clk 0:00:03]} 41. Ne2+ {[%clk 0:01:04]}  Kf7 {[%clk 0:00:02]} 42. Nxd4 {[%clk 0:01:04]}  Bd7 {[%clk 0:00:02]} 43. Bc5 {[%clk 0:01:01]}  Nc8 {[%clk 0:00:02]} 44. b4 {[%clk 0:00:59]}  Rh8 {[%clk 0:00:00]} 45. Rg2 {[%clk 0:00:57]} 1-0


[Site "https://www.chess.com"]

[Event "Titled Tuesday Blitz July 25 Late 2023"]
[White "Bettalli, Francesco"]
[Black "Zavgorodniy, Sergiy"]
[WhiteFideId "2816453"]
[BlackFideId "14110148"]
[WhiteElo "2435"]
[BlackElo "2597"]
[Result "0-1"]
[Round "5"]
[TimeControl "180+2"]
[Date "2023.07.25"]
[WhiteClock "0:00:05"]
[BlackClock "0:00:55"]
[Board "82"]

1. e4 {[%clk 0:02:47]}  c6 {[%clk 0:03:00]} 2. d4 {[%clk 0:02:46]}  d5 {[%clk 0:03:01]} 3. e5 {[%clk 0:02:46]}  Bf5 {[%clk 0:03:00]} 4. Nc3 {[%clk 0:02:47]}  e6 {[%clk 0:03:00]} 5. g4 {[%clk 0:02:47]}  Bg6 {[%clk 0:03:01]} 6. Nge2 {[%clk 0:02:48]}  c5 {[%clk 0:03:01]} 7. h4 {[%clk 0:02:48]}  cxd4 {[%clk 0:03:02]} 8. Nxd4 {[%clk 0:02:49]}  h5 {[%clk 0:03:01]} 9. g5 {[%clk 0:02:46]}  Ne7 {[%clk 0:03:00]} 10. Bh3 {[%clk 0:02:45]}  Nbc6 {[%clk 0:02:57]} 11. f4 {[%clk 0:02:45]}  Nxd4 {[%clk 0:02:57]} 12. Qxd4 {[%clk 0:02:46]}  Bxc2 {[%clk 0:02:52]} 13. Be3 {[%clk 0:02:39]}  Nf5 {[%clk 0:02:45]} 14. Bxf5 {[%clk 0:02:38]}  Bxf5 {[%clk 0:02:46]} 15. Rc1 {[%clk 0:02:37]}  a6 {[%clk 0:02:44]} 16. Kf2 {[%clk 0:02:33]}  Be7 {[%clk 0:02:40]} 17. Na4 {[%clk 0:02:30]}  O-O {[%clk 0:02:33]} 18. Nb6 {[%clk 0:02:28]}  Rb8 {[%clk 0:02:32]} 19. Rc3 {[%clk 0:02:28]}  f6 {[%clk 0:02:29]} 20. exf6 {[%clk 0:02:26]}  gxf6 {[%clk 0:02:29]} 21. Rhc1 {[%clk 0:02:25]}  Be4 {[%clk 0:02:16]} 22. Rc7 {[%clk 0:02:16]}  e5 {[%clk 0:02:08]} 23. Qd1 {[%clk 0:02:06]}  d4 {[%clk 0:01:47]} 24. Qb3+ {[%clk 0:01:46]}  Kh8 {[%clk 0:01:46]} 25. Rd7 {[%clk 0:01:39]}  dxe3+ {[%clk 0:01:43]} 26. Qxe3 {[%clk 0:01:40]}  exf4 {[%clk 0:01:35]} 27. Qd4 {[%clk 0:01:08]}  Qe8 {[%clk 0:01:33]} 28. Rcc7 {[%clk 0:01:06]}  Rd8 {[%clk 0:01:19]} 29. Rxd8 {[%clk 0:00:04]}  Bxd8 {[%clk 0:01:02]} 30. gxf6 {[%clk 0:00:05]}  Bxc7 {[%clk 0:00:56]} 31. f7+ {[%clk 0:00:05]}  Qe5 {[%clk 0:00:56]} 32. Qxe5+ {[%clk 0:00:05]}  Bxe5 {[%clk 0:00:56]} 33. Nd7 {[%clk 0:00:05]}  Bd4+ {[%clk 0:00:55]} 34. Ke2 {[%clk 0:00:05]}  Rxf7 {[%clk 0:00:55]} 0-1


[Site "https://www.chess.com"]